[Event "Titled Tuesday Blitz May 16 Late 2023"]
[White "Ramirez Vido, Robert Yorisan"]
[Black "Colbow, Collin"]
[WhiteFideId "3513823"]
[BlackFideId "16201132"]
[WhiteElo "2369"]
[BlackElo "2351"]
[Result "0-1"]
[Round "04"]
[TimeControl "180+2"]
[Date "2023.05.16"]
[WhiteClock "0:00:00"]
[BlackClock "0:00:15"]

1. f4 {[%clk 0:02:53]}  b5 {[%clk 0:02:49]} 2. Nf3 {[%clk 0:02:51]}  Bb7 {[%clk 0:02:50]} 3. g3 {[%clk 0:02:51]}  g6 {[%clk 0:02:47]} 4. Bg2 {[%clk 0:02:50]}  Bg7 {[%clk 0:02:47]} 5. d3 {[%clk 0:02:51]}  d5 {[%clk 0:02:46]} 6. O-O {[%clk 0:02:50]}  Nf6 {[%clk 0:02:46]} 7. e4 {[%clk 0:02:34]}  dxe4 {[%clk 0:02:46]} 8. dxe4 {[%clk 0:02:33]}  Qxd1 {[%clk 0:02:44]} 9. Rxd1 {[%clk 0:02:34]}  Bxe4 {[%clk 0:02:41]} 10. Nc3 {[%clk 0:02:27]}  Bc6 {[%clk 0:02:37]} 11. a4 {[%clk 0:01:55]}  b4 {[%clk 0:02:35]} 12. Nb5 {[%clk 0:01:52]}  Na6 {[%clk 0:02:24]} 13. Be3 {[%clk 0:01:36]}  Ng4 {[%clk 0:01:58]} 14. Bxa7 {[%clk 0:01:30]}  Bxb2 {[%clk 0:01:57]} 15. Ra2 {[%clk 0:01:18]}  Bg7 {[%clk 0:01:38]} 16. Bd4 {[%clk 0:00:59]}  Bxd4+ {[%clk 0:01:33]} 17. Nbxd4 {[%clk 0:00:58]}  Bb7 {[%clk 0:01:11]} 18. Re1 {[%clk 0:00:53]}  e6 {[%clk 0:01:04]} 19. Bh3 {[%clk 0:00:35]}  Nf6 {[%clk 0:01:02]} 20. Bxe6 {[%clk 0:00:29]}  fxe6 {[%clk 0:01:03]} 21. Rxe6+ {[%clk 0:00:28]}  Kf7 {[%clk 0:00:36]} 22. Ng5+ {[%clk 0:00:15]}  Kg7 {[%clk 0:00:36]} 23. Re7+ {[%clk 0:00:14]}  Kh6 {[%clk 0:00:32]} 24. Nf7+ {[%clk 0:00:11]}  Kh5 {[%clk 0:00:30]} 25. Nxh8 {[%clk 0:00:08]}  Rxh8 {[%clk 0:00:28]} 26. Ne6 {[%clk 0:00:06]}  Bd5 {[%clk 0:00:22]} 27. Nxc7 {[%clk 0:00:05]}  Bxa2 {[%clk 0:00:22]} 28. Nxa6 {[%clk 0:00:05]}  Nd5 {[%clk 0:00:16]} 29. Rd7 {[%clk 0:00:00]}  Rc8 {[%clk 0:00:15]} 0-1


[Site "https://www.chess.com"]

[Event "Titled Tuesday Blitz May 16 Late 2023"]
[White "Aggelis, Nikolaos"]
[Black "Kaganskiy, Gleb"]
[WhiteFideId "4213220"]
[BlackFideId "4132025"]
[WhiteElo "2189"]
[BlackElo "2165"]
[Result "1/2-1/2"]
[Round "04"]
[TimeControl "180+2"]
[Date "2023.05.16"]
[WhiteClock "0:00:24"]
[BlackClock "0:00:04"]

1. f4 {[%clk 0:03:00]}  d5 {[%clk 0:02:55]} 2. e3 {[%clk 0:02:53]}  g6 {[%clk 0:02:50]} 3. d4 {[%clk 0:02:49]}  Bg7 {[%clk 0:02:49]} 4. Nf3 {[%clk 0:02:34]}  c5 {[%clk 0:02:45]} 5. c3 {[%clk 0:02:25]}  Nf6 {[%clk 0:02:40]} 6. Be2 {[%clk 0:02:11]}  O-O {[%clk 0:02:40]} 7. O-O {[%clk 0:02:10]}  b6 {[%clk 0:02:39]} 8. Ng5 {[%clk 0:02:05]}  Ba6 {[%clk 0:02:37]} 9. b3 {[%clk 0:01:50]}  Bxe2 {[%clk 0:02:34]} 10. Qxe2 {[%clk 0:01:48]}  Nbd7 {[%clk 0:02:29]} 11. Ba3 {[%clk 0:01:43]}  h6 {[%clk 0:02:21]} 12. Nf3 {[%clk 0:01:38]}  Ne4 {[%clk 0:02:21]} 13. Bb2 {[%clk 0:01:25]}  Qc7 {[%clk 0:02:18]} 14. Nbd2 {[%clk 0:01:20]}  Ndf6 {[%clk 0:02:11]} 15. Rac1 {[%clk 0:01:14]}  Rac8 {[%clk 0:02:07]} 16. Ne5 {[%clk 0:01:06]}  Nxd2 {[%clk 0:02:05]} 17. Qxd2 {[%clk 0:01:00]}  Ne4 {[%clk 0:02:05]} 18. Qd3 {[%clk 0:00:54]}  Bxe5 {[%clk 0:02:03]} 19. fxe5 {[%clk 0:00:55]}  c4 {[%clk 0:01:59]} 20. Qc2 {[%clk 0:00:50]}  b5 {[%clk 0:01:53]} 21. Rf4 {[%clk 0:00:50]}  e6 {[%clk 0:01:44]} 22. b4 {[%clk 0:00:46]}  a5 {[%clk 0:01:38]} 23. Ba3 {[%clk 0:00:46]}  a4 {[%clk 0:01:34]} 24. Bb2 {[%clk 0:00:45]}  Qe7 {[%clk 0:01:25]} 25. Rcf1 {[%clk 0:00:43]}  Kg7 {[%clk 0:01:12]} 26. Bc1 {[%clk 0:00:42]}  f6 {[%clk 0:01:00]} 27. Rxe4 {[%clk 0:00:33]}  dxe4 {[%clk 0:00:59]} 28. Qxe4 {[%clk 0:00:34]}  fxe5 {[%clk 0:00:53]} 29. Qxe5+ {[%clk 0:00:35]}  Kh7 {[%clk 0:00:51]} 30. Rf3 {[%clk 0:00:35]}  Rxf3 {[%clk 0:00:48]} 31. gxf3 {[%clk 0:00:36]}  Rf8 {[%clk 0:00:46]} 32. Kg2 {[%clk 0:00:30]}  Qg5+ {[%clk 0:00:33]} 33. Qxg5 {[%clk 0:00:29]}  hxg5 {[%clk 0:00:34]} 34. e4 {[%clk 0:00:28]}  g4 {[%clk 0:00:24]} 35. fxg4 {[%clk 0:00:28]}  Kg7 {[%clk 0:00:16]} 36. Be3 {[%clk 0:00:28]}  Kf7 {[%clk 0:00:14]} 37. a3 {[%clk 0:00:28]}  Ke8 {[%clk 0:00:11]} 38. h3 {[%clk 0:00:29]}  Rf7 {[%clk 0:00:10]} 39. Bf2 {[%clk 0:00:29]}  Kd7 {[%clk 0:00:10]} 40. Be3 {[%clk 0:00:29]}  Ke8 {[%clk 0:00:09]} 41. Bf2 {[%clk 0:00:29]}  Rf4 {[%clk 0:00:09]} 42. Be3 {[%clk 0:00:24]}  Rf7 {[%clk 0:00:04]} 1/2-1/2


[Site "https://www.chess.com"]

[Event "Titled Tuesday Blitz May 16 Late 2023"]
[White "Carrasco Miranda, Andres"]
[Black "WindWhistler11"]
[WhiteFideId "3405990"]
[WhiteElo "2183"]
[BlackElo "2511"]
[Result "0-1"]
[Round "04"]
[TimeControl "180+2"]
[Date "2023.05.16"]
[WhiteClock "0:00:05"]
[BlackClock "0:00:13"]

1. d4 {[%clk 0:02:57]}  Nf6 {[%clk 0:02:57]} 2. c4 {[%clk 0:02:56]}  c5 {[%clk 0:02:57]} 3. d5 {[%clk 0:02:56]}  e6 {[%clk 0:02:58]} 4. Nc3 {[%clk 0:02:55]}  exd5 {[%clk 0:02:59]} 5. cxd5 {[%clk 0:02:56]}  Bd6 {[%clk 0:03:00]} 6. g3 {[%clk 0:02:52]}  O-O {[%clk 0:03:01]} 7. Bg2 {[%clk 0:02:52]}  Bc7 {[%clk 0:03:00]} 8. Nf3 {[%clk 0:02:52]}  d6 {[%clk 0:03:01]} 9. O-O {[%clk 0:02:52]}  a6 {[%clk 0:03:02]} 10. a4 {[%clk 0:02:52]}  Nbd7 {[%clk 0:03:02]} 11. Nd2 {[%clk 0:02:46]}  Re8 {[%clk 0:03:03]} 12. Nc4 {[%clk 0:02:45]}  Rb8 {[%clk 0:03:04]} 13. Bf4 {[%clk 0:02:43]}  Nf8 {[%clk 0:03:03]} 14. a5 {[%clk 0:02:38]}  Ng6 {[%clk 0:03:03]} 15. Bd2 {[%clk 0:02:33]}  Bd7 {[%clk 0:03:03]} 16. Qb3 {[%clk 0:02:15]}  Ne5 {[%clk 0:02:43]} 17. Nxe5 {[%clk 0:02:11]}  Rxe5 {[%clk 0:02:42]} 18. e4 {[%clk 0:01:57]}  Re8 {[%clk 0:02:37]} 19. Qa3 {[%clk 0:01:45]}  Bb5 {[%clk 0:02:14]} 20. Rfe1 {[%clk 0:01:44]}  Bd3 {[%clk 0:02:13]} 21. Bf4 {[%clk 0:01:29]}  h6 {[%clk 0:02:02]} 22. Rad1 {[%clk 0:01:19]}  c4 {[%clk 0:01:53]} 23. b4 {[%clk 0:01:03]}  g5 {[%clk 0:01:38]} 24. Bc1 {[%clk 0:01:01]}  Ng4 {[%clk 0:01:35]} 25. h3 {[%clk 0:00:54]}  Ne5 {[%clk 0:01:26]} 26. f4 {[%clk 0:00:53]}  gxf4 {[%clk 0:01:25]} 27. gxf4 {[%clk 0:00:54]}  Ng6 {[%clk 0:01:26]} 28. Kh2 {[%clk 0:00:36]}  Kh7 {[%clk 0:01:19]} 29. Rg1 {[%clk 0:00:28]}  Rg8 {[%clk 0:01:17]} 30. Rxd3 {[%clk 0:00:15]}  cxd3 {[%clk 0:01:14]} 31. Nd1 {[%clk 0:00:15]}  Qh4 {[%clk 0:01:09]} 32. Qxd3 {[%clk 0:00:15]}  Nxf4 {[%clk 0:01:08]} 33. Bxf4 {[%clk 0:00:12]}  Qxf4+ {[%clk 0:01:07]} 34. Kh1 {[%clk 0:00:11]}  Rg3 {[%clk 0:01:07]} 35. Qc2 {[%clk 0:00:10]}  Bd8 {[%clk 0:00:48]} 36. e5+ {[%clk 0:00:09]}  Kh8 {[%clk 0:00:46]} 37. Rf1 {[%clk 0:00:10]}  Qxe5 {[%clk 0:00:25]} 38. Rxf7 {[%clk 0:00:10]}  Rg7 {[%clk 0:00:21]} 39. Rf8+ {[%clk 0:00:10]}  Rg8 {[%clk 0:00:21]} 40. Rf7 {[%clk 0:00:10]}  Qe1+ {[%clk 0:00:21]} 41. Kh2 {[%clk 0:00:07]}  Qg3+ {[%clk 0:00:19]} 42. Kh1 {[%clk 0:00:08]}  Qg6 {[%clk 0:00:14]} 43. Be4 {[%clk 0:00:05]}  Qg1# {[%clk 0:00:13]} 0-1


[Site "https://www.chess.com"]

[Event "Titled Tuesday Blitz May 16 Late 2023"]
[White "Sliwicki, Damian"]
[Black "Stachanczyk, Jacek"]
[WhiteFideId "1127128"]
[BlackFideId "1116657"]
[WhiteElo "2030"]
[BlackElo "2084"]
[Result "1-0"]
[Round "04"]
[TimeControl "180+2"]
[Date "2023.05.16"]
[WhiteClock "0:00:09"]
[BlackClock "0:00:40"]

1. e4 {[%clk 0:02:59]}  c5 {[%clk 0:02:59]} 2. Nf3 {[%clk 0:02:58]}  d6 {[%clk 0:02:59]} 3. d4 {[%clk 0:02:57]}  cxd4 {[%clk 0:03:00]} 4. Qxd4 {[%clk 0:02:57]}  Nc6 {[%clk 0:03:00]} 5. Bb5 {[%clk 0:02:56]}  Bd7 {[%clk 0:03:00]} 6. Bxc6 {[%clk 0:02:57]}  Bxc6 {[%clk 0:03:01]} 7. Nc3 {[%clk 0:02:56]}  e5 {[%clk 0:02:55]} 8. Qd3 {[%clk 0:02:56]}  h6 {[%clk 0:02:54]} 9. Be3 {[%clk 0:02:52]}  Nf6 {[%clk 0:02:54]} 10. O-O-O {[%clk 0:02:48]}  Qc7 {[%clk 0:02:49]} 11. Nb5 {[%clk 0:02:39]}  Bxb5 {[%clk 0:02:44]} 12. Qxb5+ {[%clk 0:02:40]}  Qc6 {[%clk 0:02:44]} 13. Qa5 {[%clk 0:02:18]}  Nxe4 {[%clk 0:02:33]} 14. Rhe1 {[%clk 0:02:16]}  Be7 {[%clk 0:02:33]} 15. Kb1 {[%clk 0:01:50]}  O-O {[%clk 0:02:29]} 16. g4 {[%clk 0:01:50]}  f5 {[%clk 0:02:10]} 17. gxf5 {[%clk 0:01:43]}  Rxf5 {[%clk 0:02:11]} 18. Nd4 {[%clk 0:01:13]}  exd4 {[%clk 0:01:46]} 19. Qxf5 {[%clk 0:01:14]}  dxe3 {[%clk 0:01:27]} 20. Rxe3 {[%clk 0:01:11]}  Nd2+ {[%clk 0:01:25]} 21. Kc1 {[%clk 0:01:06]}  Bg5 {[%clk 0:01:16]} 22. f4 {[%clk 0:01:00]}  Nc4 {[%clk 0:01:10]} 23. Qe6+ {[%clk 0:00:47]}  Kh7 {[%clk 0:01:04]} 24. Qe4+ {[%clk 0:00:24]}  Qxe4 {[%clk 0:01:04]} 25. Rxe4 {[%clk 0:00:25]}  Ne3 {[%clk 0:00:58]} 26. Rd3 {[%clk 0:00:17]}  Ng4 {[%clk 0:00:52]} 27. fxg5 {[%clk 0:00:07]}  Nf2 {[%clk 0:00:52]} 28. g6+ {[%clk 0:00:05]}  Kg8 {[%clk 0:00:49]} 29. Ree3 {[%clk 0:00:03]}  Nxd3+ {[%clk 0:00:49]} 30. Rxd3 {[%clk 0:00:04]}  Rd8 {[%clk 0:00:46]} 31. Kd2 {[%clk 0:00:03]}  Kf8 {[%clk 0:00:46]} 32. Re3 {[%clk 0:00:02]}  Re8 {[%clk 0:00:43]} 33. Rf3+ {[%clk 0:00:02]}  Ke7 {[%clk 0:00:42]} 34. Rf7+ {[%clk 0:00:03]}  Ke6 {[%clk 0:00:43]} 35. Rxg7 {[%clk 0:00:04]}  Kf6 {[%clk 0:00:43]} 36. Rxb7 {[%clk 0:00:04]}  Kxg6 {[%clk 0:00:43]} 37. Rxa7 {[%clk 0:00:05]}  Re5 {[%clk 0:00:43]} 38. Rd7 {[%clk 0:00:05]}  d5 {[%clk 0:00:42]} 39. a4 {[%clk 0:00:05]}  Rh5 {[%clk 0:00:43]} 40. Kc3 {[%clk 0:00:04]}  Rxh2 {[%clk 0:00:43]} 41. Rxd5 {[%clk 0:00:03]}  Rh1 {[%clk 0:00:43]} 42. a5 {[%clk 0:00:03]}  Ra1 {[%clk 0:00:43]} 43. b4 {[%clk 0:00:04]}  h5 {[%clk 0:00:43]} 44. Rd6+ {[%clk 0:00:04]}  Kg5 {[%clk 0:00:43]} 45. a6 {[%clk 0:00:05]}  h4 {[%clk 0:00:43]} 46. Rd5+ {[%clk 0:00:06]}  Kg4 {[%clk 0:00:43]} 47. Ra5 {[%clk 0:00:06]}  Rf1 {[%clk 0:00:40]} 48. a7 {[%clk 0:00:07]}  Rf8 {[%clk 0:00:41]} 49. a8=Q {[%clk 0:00:08]}  Rxa8 {[%clk 0:00:41]} 50. Rxa8 {[%clk 0:00:08]}  h3 {[%clk 0:00:40]} 51. Rh8 {[%clk 0:00:09]} 1-0


[Site "https://www.chess.com"]

[Event "Titled Tuesday Blitz May 16 Late 2023"]
[White "Peatman, Carter"]
[Black "Bilan, Danila"]
[WhiteFideId "2096480"]
[BlackFideId "24161918"]
[WhiteElo "2003"]
[BlackElo "2182"]
[Result "0-1"]
[Round "04"]
[TimeControl "180+2"]
[Date "2023.05.16"]
[WhiteClock "0:00:03"]
[BlackClock "0:00:06"]

1. d4 {[%clk 0:03:00]}  d5 {[%clk 0:03:00]} 2. Bf4 {[%clk 0:02:59]}  Nf6 {[%clk 0:03:00]} 3. e3 {[%clk 0:02:59]}  c5 {[%clk 0:03:00]} 4. dxc5 {[%clk 0:02:59]}  e6 {[%clk 0:02:57]} 5. b4 {[%clk 0:02:58]}  a5 {[%clk 0:02:53]} 6. c3 {[%clk 0:02:58]}  axb4 {[%clk 0:02:47]} 7. cxb4 {[%clk 0:02:59]}  Nc6 {[%clk 0:02:38]} 8. Bb5 {[%clk 0:02:57]}  Bd7 {[%clk 0:02:35]} 9. Qb3 {[%clk 0:02:56]}  Be7 {[%clk 0:02:08]} 10. Nc3 {[%clk 0:02:41]}  O-O {[%clk 0:01:50]} 11. Nf3 {[%clk 0:02:42]}  Ne4 {[%clk 0:01:38]} 12. Bxc6 {[%clk 0:02:25]}  Bxc6 {[%clk 0:01:33]} 13. Nxe4 {[%clk 0:02:22]}  dxe4 {[%clk 0:01:31]} 14. Nd4 {[%clk 0:02:15]}  Bd5 {[%clk 0:01:27]} 15. Qb2 {[%clk 0:02:09]}  b6 {[%clk 0:01:09]} 16. cxb6 {[%clk 0:02:06]}  Qxb6 {[%clk 0:01:08]} 17. a3 {[%clk 0:02:06]}  Bc4 {[%clk 0:00:55]} 18. f3 {[%clk 0:01:42]}  Bf6 {[%clk 0:00:37]} 19. Bg3 {[%clk 0:01:01]}  e5 {[%clk 0:00:32]} 20. Nc2 {[%clk 0:01:01]}  exf3 {[%clk 0:00:27]} 21. gxf3 {[%clk 0:00:58]}  Bd3 {[%clk 0:00:23]} 22. Bf2 {[%clk 0:00:43]}  e4 {[%clk 0:00:21]} 23. Nd4 {[%clk 0:00:42]}  Rfe8 {[%clk 0:00:19]} 24. f4 {[%clk 0:00:40]}  Rac8 {[%clk 0:00:16]} 25. Rc1 {[%clk 0:00:37]}  Rxc1+ {[%clk 0:00:14]} 26. Qxc1 {[%clk 0:00:38]}  Bxd4 {[%clk 0:00:15]} 27. exd4 {[%clk 0:00:39]}  e3 {[%clk 0:00:15]} 28. Bxe3 {[%clk 0:00:39]}  Qxd4 {[%clk 0:00:15]} 29. Kf2 {[%clk 0:00:40]}  Qe4 {[%clk 0:00:16]} 30. Rg1 {[%clk 0:00:37]}  g6 {[%clk 0:00:14]} 31. Qc5 {[%clk 0:00:35]}  Bc4 {[%clk 0:00:12]} 32. Rd1 {[%clk 0:00:26]}  Qc2+ {[%clk 0:00:05]} 33. Rd2 {[%clk 0:00:27]}  Qc1 {[%clk 0:00:06]} 34. Kg3 {[%clk 0:00:19]}  Qe1+ {[%clk 0:00:04]} 35. Kf3 {[%clk 0:00:18]}  Be6 {[%clk 0:00:03]} 36. Qd4 {[%clk 0:00:08]}  Qh1+ {[%clk 0:00:04]} 37. Kf2 {[%clk 0:00:08]}  Bg4 {[%clk 0:00:04]} 38. h4 {[%clk 0:00:04]}  Qf3+ {[%clk 0:00:04]} 39. Kg1 {[%clk 0:00:04]}  Rxe3 {[%clk 0:00:04]} 40. Qd8+ {[%clk 0:00:04]}  Kg7 {[%clk 0:00:05]} 41. Qd4+ {[%clk 0:00:03]}  Kh6 {[%clk 0:00:05]} 42. Qf6 {[%clk 0:00:03]}  Re1+ {[%clk 0:00:05]} 43. Kh2 {[%clk 0:00:03]}  Rh1# {[%clk 0:00:06]} 0-1


[Site "https://www.chess.com"]

[Event "Titled Tuesday Blitz May 16 Late 2023"]
[White "Karas, Marek"]
[Black "Celestino, Rafael Teixeira"]
[WhiteFideId "14928558"]
[BlackFideId "2108925"]
[WhiteElo "2233"]
[BlackElo "2327"]
[Result "1-0"]
[Round "04"]
[TimeControl "180+2"]
[Date "2023.05.16"]
[WhiteClock "0:00:06"]
[BlackClock "0:00:41"]

1. h4 {[%clk 0:02:59]}  e5 {[%clk 0:02:58]} 2. c4 {[%clk 0:02:58]}  Nc6 {[%clk 0:02:57]} 3. Nc3 {[%clk 0:02:55]}  Nf6 {[%clk 0:02:57]} 4. e3 {[%clk 0:02:53]}  d5 {[%clk 0:02:58]} 5. cxd5 {[%clk 0:02:53]}  Nxd5 {[%clk 0:02:59]} 6. a3 {[%clk 0:02:52]}  Be6 {[%clk 0:02:58]} 7. Nf3 {[%clk 0:02:50]}  Be7 {[%clk 0:02:58]} 8. Bb5 {[%clk 0:02:41]}  Bf6 {[%clk 0:02:53]} 9. Ne4 {[%clk 0:02:33]}  O-O {[%clk 0:02:50]} 10. Nfg5 {[%clk 0:02:29]}  Bf5 {[%clk 0:02:48]} 11. Bxc6 {[%clk 0:02:23]}  bxc6 {[%clk 0:02:47]} 12. Qf3 {[%clk 0:02:22]}  Qd7 {[%clk 0:02:24]} 13. d3 {[%clk 0:02:11]}  Be7 {[%clk 0:02:10]} 14. Qg3 {[%clk 0:01:59]}  Rab8 {[%clk 0:02:05]} 15. Nf3 {[%clk 0:01:54]}  Bxe4 {[%clk 0:02:00]} 16. dxe4 {[%clk 0:01:54]}  Nf6 {[%clk 0:02:01]} 17. O-O {[%clk 0:01:46]}  Bd6 {[%clk 0:01:55]} 18. Nd2 {[%clk 0:01:15]}  Rfd8 {[%clk 0:01:51]} 19. Qf3 {[%clk 0:01:09]}  Bc5 {[%clk 0:01:38]} 20. b4 {[%clk 0:01:03]}  Bb6 {[%clk 0:01:38]} 21. Nc4 {[%clk 0:01:02]}  Qe6 {[%clk 0:01:36]} 22. Nxb6 {[%clk 0:00:51]}  axb6 {[%clk 0:01:30]} 23. Bb2 {[%clk 0:00:43]}  Rd2 {[%clk 0:01:30]} 24. Bc3 {[%clk 0:00:40]}  Rd3 {[%clk 0:01:30]} 25. Rfc1 {[%clk 0:00:36]}  Rbd8 {[%clk 0:01:20]} 26. Qf5 {[%clk 0:00:33]}  Qb3 {[%clk 0:00:54]} 27. Bxe5 {[%clk 0:00:22]}  Rd1+ {[%clk 0:00:54]} 28. Rxd1 {[%clk 0:00:19]}  Rxd1+ {[%clk 0:00:55]} 29. Rxd1 {[%clk 0:00:19]}  Qxd1+ {[%clk 0:00:56]} 30. Kh2 {[%clk 0:00:19]}  Ng4+ {[%clk 0:00:55]} 31. Kg3 {[%clk 0:00:19]}  h5 {[%clk 0:00:56]} 32. Bxc7 {[%clk 0:00:14]}  Qd2 {[%clk 0:00:51]} 33. Qc8+ {[%clk 0:00:13]}  Kh7 {[%clk 0:00:50]} 34. Qf5+ {[%clk 0:00:13]}  Kg8 {[%clk 0:00:49]} 35. Bxb6 {[%clk 0:00:10]}  g6 {[%clk 0:00:46]} 36. Qf4 {[%clk 0:00:07]}  Qc1 {[%clk 0:00:44]} 37. Bd4 {[%clk 0:00:06]}  Qh1 {[%clk 0:00:43]} 38. Qb8+ {[%clk 0:00:06]}  Kh7 {[%clk 0:00:41]} 39. Qh8# {[%clk 0:00:06]} 1-0


[Site "https://www.chess.com"]

[Event "Titled Tuesday Blitz May 16 Late 2023"]
[White "ArtemDyachuk"]
[Black "Shtivelband, Richard"]
[BlackFideId "2017342"]
[WhiteElo "2495"]
[BlackElo "2306"]
[Result "1-0"]
[Round "04"]
[TimeControl "180+2"]
[Date "2023.05.16"]
[WhiteClock "0:00:41"]
[BlackClock "0:01:42"]

1. Nf3 {[%clk 0:03:00]}  Nf6 {[%clk 0:02:55]} 2. b3 {[%clk 0:02:59]}  g6 {[%clk 0:02:55]} 3. Bb2 {[%clk 0:02:57]}  Bg7 {[%clk 0:02:55]} 4. e3 {[%clk 0:02:53]}  O-O {[%clk 0:02:54]} 5. d4 {[%clk 0:02:53]}  d6 {[%clk 0:02:52]} 6. Be2 {[%clk 0:02:52]}  Nbd7 {[%clk 0:02:51]} 7. O-O {[%clk 0:02:51]}  e5 {[%clk 0:02:50]} 8. dxe5 {[%clk 0:02:52]}  Ng4 {[%clk 0:02:49]} 9. c4 {[%clk 0:02:51]}  Ngxe5 {[%clk 0:02:46]} 10. Nxe5 {[%clk 0:02:51]}  Nxe5 {[%clk 0:02:46]} 11. Nc3 {[%clk 0:02:51]}  Bd7 {[%clk 0:02:45]} 12. Qd2 {[%clk 0:02:50]}  Bc6 {[%clk 0:02:45]} 13. Nd5 {[%clk 0:02:47]}  Re8 {[%clk 0:02:41]} 14. e4 {[%clk 0:02:40]}  Bxd5 {[%clk 0:02:30]} 15. cxd5 {[%clk 0:02:37]}  c5 {[%clk 0:02:30]} 16. dxc6 {[%clk 0:02:35]}  bxc6 {[%clk 0:02:30]} 17. f4 {[%clk 0:02:09]}  Qb6+ {[%clk 0:02:24]} 18. Kh1 {[%clk 0:02:02]}  Nd7 {[%clk 0:02:21]} 19. Bxg7 {[%clk 0:01:54]}  Kxg7 {[%clk 0:02:22]} 20. Qxd6 {[%clk 0:01:41]}  Nf6 {[%clk 0:02:21]} 21. Bf3 {[%clk 0:01:16]}  Nxe4 {[%clk 0:02:21]} 22. Bxe4 {[%clk 0:01:15]}  Rxe4 {[%clk 0:02:22]} 23. f5 {[%clk 0:01:16]}  Rd8 {[%clk 0:02:03]} 24. Qg3 {[%clk 0:01:03]}  Re2 {[%clk 0:01:56]} 25. fxg6 {[%clk 0:00:42]}  hxg6 {[%clk 0:01:55]} 26. Qf3 {[%clk 0:00:42]}  Re7 {[%clk 0:01:42]} 27. Qf6+ {[%clk 0:00:41]} 1-0


[Site "https://www.chess.com"]

[Event "Titled Tuesday Blitz May 16 Late 2023"]
[White "De Souza, Cristiano Gomes"]
[Black "Molenda, Marcin"]
[WhiteFideId "2151758"]
[BlackFideId "1173065"]
[WhiteElo "2068"]
[BlackElo "2286"]
[Result "0-1"]
[Round "04"]
[TimeControl "180+2"]
[Date "2023.05.16"]
[WhiteClock "0:00:58"]
[BlackClock "0:02:23"]

1. d4 {[%clk 0:02:55]}  Nf6 {[%clk 0:02:56]} 2. c4 {[%clk 0:02:55]}  g6 {[%clk 0:02:55]} 3. Nf3 {[%clk 0:02:53]}  Bg7 {[%clk 0:02:55]} 4. Nc3 {[%clk 0:02:53]}  O-O {[%clk 0:02:56]} 5. e4 {[%clk 0:02:53]}  d6 {[%clk 0:02:57]} 6. Be2 {[%clk 0:02:54]}  Nbd7 {[%clk 0:02:58]} 7. O-O {[%clk 0:02:54]}  e5 {[%clk 0:02:58]} 8. d5 {[%clk 0:02:54]}  Nc5 {[%clk 0:02:58]} 9. Nd2 {[%clk 0:02:55]}  a5 {[%clk 0:02:59]} 10. b3 {[%clk 0:02:53]}  Nfd7 {[%clk 0:02:54]} 11. Bb2 {[%clk 0:02:47]}  f5 {[%clk 0:02:54]} 12. a3 {[%clk 0:02:44]}  Nf6 {[%clk 0:02:52]} 13. Qc2 {[%clk 0:02:40]}  f4 {[%clk 0:02:52]} 14. b4 {[%clk 0:02:38]}  Na6 {[%clk 0:02:52]} 15. Qb3 {[%clk 0:02:35]}  g5 {[%clk 0:02:51]} 16. f3 {[%clk 0:02:35]}  g4 {[%clk 0:02:50]} 17. Rac1 {[%clk 0:02:32]}  g3 {[%clk 0:02:49]} 18. Rfd1 {[%clk 0:02:20]}  gxh2+ {[%clk 0:02:47]} 19. Kxh2 {[%clk 0:02:18]}  Nh5 {[%clk 0:02:47]} 20. Nf1 {[%clk 0:02:03]}  Qh4+ {[%clk 0:02:46]} 21. Kg1 {[%clk 0:02:03]}  Ng3 {[%clk 0:02:46]} 22. c5 {[%clk 0:01:49]}  Bf6 {[%clk 0:02:42]} 23. c6 {[%clk 0:01:42]}  Qh1+ {[%clk 0:02:42]} 24. Kf2 {[%clk 0:01:42]}  Bh4 {[%clk 0:02:42]} 25. Bxa6 {[%clk 0:01:30]}  Nxf1+ {[%clk 0:02:28]} 26. Ke2 {[%clk 0:01:26]}  Qxg2+ {[%clk 0:02:29]} 27. Kd3 {[%clk 0:01:24]}  Qxf3+ {[%clk 0:02:27]} 28. Kc2 {[%clk 0:01:24]}  Ne3+ {[%clk 0:02:27]} 29. Kb1 {[%clk 0:01:24]}  bxa6 {[%clk 0:02:28]} 30. Rg1+ {[%clk 0:01:23]}  Kh8 {[%clk 0:02:28]} 31. Nd1 {[%clk 0:01:20]}  Qxe4+ {[%clk 0:02:27]} 32. Ka2 {[%clk 0:01:20]}  a4 {[%clk 0:02:23]} 33. Qc3 {[%clk 0:01:14]}  Qxd5+ {[%clk 0:02:23]} 34. Ka1 {[%clk 0:00:58]}  Be6 {[%clk 0:02:23]} 0-1


[Site "https://www.chess.com"]

[Event "Titled Tuesday Blitz May 16 Late 2023"]
[White "Ognean, Mihnea-Ionut"]
[Black "Cooklev, Steven"]
[WhiteFideId "1232347"]
[BlackFideId "2050552"]
[WhiteElo "2215"]
[BlackElo "2285"]
[Result "1-0"]
[Round "04"]
[TimeControl "180+2"]
[Date "2023.05.16"]
[WhiteClock "0:01:27"]
[BlackClock "0:00:00"]

1. Nf3 {[%clk 0:03:00]}  Nf6 {[%clk 0:02:56]} 2. d4 {[%clk 0:03:01]}  d5 {[%clk 0:02:56]} 3. c4 {[%clk 0:02:59]}  e6 {[%clk 0:02:57]} 4. e3 {[%clk 0:02:58]}  c5 {[%clk 0:02:56]} 5. a3 {[%clk 0:02:57]}  Nc6 {[%clk 0:02:56]} 6. dxc5 {[%clk 0:02:57]}  Bxc5 {[%clk 0:02:36]} 7. b4 {[%clk 0:02:57]}  Be7 {[%clk 0:02:34]} 8. Bb2 {[%clk 0:02:58]}  O-O {[%clk 0:02:34]} 9. Nbd2 {[%clk 0:02:58]}  Re8 {[%clk 0:02:28]} 10. Be2 {[%clk 0:02:57]}  dxc4 {[%clk 0:02:17]} 11. Nxc4 {[%clk 0:02:56]}  Qxd1+ {[%clk 0:02:15]} 12. Rxd1 {[%clk 0:02:57]}  Nd5 {[%clk 0:01:56]} 13. O-O {[%clk 0:02:37]}  Bf6 {[%clk 0:01:52]} 14. Bxf6 {[%clk 0:02:33]}  Nxf6 {[%clk 0:01:50]} 15. b5 {[%clk 0:02:33]}  Ne7 {[%clk 0:01:49]} 16. Nd6 {[%clk 0:02:05]}  Rf8 {[%clk 0:01:49]} 17. e4 {[%clk 0:02:02]}  Bd7 {[%clk 0:01:14]} 18. Ne5 {[%clk 0:02:02]}  Ng6 {[%clk 0:00:58]} 19. Nxd7 {[%clk 0:01:55]}  Nxd7 {[%clk 0:00:57]} 20. Nxb7 {[%clk 0:01:56]}  Nf6 {[%clk 0:00:47]} 21. f3 {[%clk 0:01:54]}  Nf4 {[%clk 0:00:44]} 22. Kf2 {[%clk 0:01:51]}  Rac8 {[%clk 0:00:37]} 23. Rc1 {[%clk 0:01:49]}  g5 {[%clk 0:00:18]} 24. g3 {[%clk 0:01:46]}  Nxe2 {[%clk 0:00:17]} 25. Kxe2 {[%clk 0:01:47]}  Nd7 {[%clk 0:00:16]} 26. Nd6 {[%clk 0:01:45]}  Rb8 {[%clk 0:00:15]} 27. Rc7 {[%clk 0:01:43]}  Ne5 {[%clk 0:00:13]} 28. f4 {[%clk 0:01:40]}  gxf4 {[%clk 0:00:11]} 29. gxf4 {[%clk 0:01:40]}  Ng6 {[%clk 0:00:07]} 30. Ke3 {[%clk 0:01:39]}  Rb6 {[%clk 0:00:04]} 31. e5 {[%clk 0:01:39]}  a6 {[%clk 0:00:02]} 32. a4 {[%clk 0:01:38]}  axb5 {[%clk 0:00:02]} 33. axb5 {[%clk 0:01:39]}  Ra8 {[%clk 0:00:01]} 34. Rfc1 {[%clk 0:01:39]}  Ra3+ {[%clk 0:00:01]} 35. R1c3 {[%clk 0:01:39]}  Rxc3+ {[%clk 0:00:02]} 36. Rxc3 {[%clk 0:01:39]}  Ne7 {[%clk 0:00:02]} 37. Rb3 {[%clk 0:01:35]}  Nd5+ {[%clk 0:00:03]} 38. Ke4 {[%clk 0:01:33]}  f5+ {[%clk 0:00:02]} 39. Nxf5 {[%clk 0:01:30]}  Nf6+ {[%clk 0:00:01]} 40. exf6 {[%clk 0:01:29]}  exf5+ {[%clk 0:00:01]} 41. Kxf5 {[%clk 0:01:30]}  Kf7 {[%clk 0:00:02]} 42. Ke5 {[%clk 0:01:28]}  Re6+ {[%clk 0:00:02]} 43. Kd5 {[%clk 0:01:26]}  Rb6 {[%clk 0:00:02]} 44. Kc5 {[%clk 0:01:26]}  Rb8 {[%clk 0:00:02]} 45. b6 {[%clk 0:01:26]}  Kxf6 {[%clk 0:00:02]} 46. b7 {[%clk 0:01:27]}  Kf5 {[%clk 0:00:02]} 47. Rb4 {[%clk 0:01:27]}  h5 {[%clk 0:00:02]} 48. Kc6 {[%clk 0:01:27]}  Kg4 {[%clk 0:00:00]} 49. Kc7 {[%clk 0:01:27]} 1-0


[Site "https://www.chess.com"]